bitfinex/quotes_ETHUSD_20240828
["timestamp","ask_amount","ask_price","bid_price","bid_amount"]
[1724836218359,2.4223,2479.1,2478.6,8.06896]
[1724836218650,2.4223,2479.1,2478.6,8.06889]
[1724836218960,4.0334,2479.3,2478.6,4.03441]
[1724836219163,7.6697889,2479.4,2478.8,4.03412]
[1724836219476,7.6697889,2479.4,2478.9,4.0339]
[1724836219477,10.53117,2479.4,2478.9,4.0339]
[1724836219811,0.005,2479.6,2479.2,4.03353]
[1724836219991,0.005,2479.6,2479.3,4.11390876]
[1724836220160,0.005,2479.6,2479.4,4.03322]
[1724836220363,0.005,2479.6,2479.5,4.03307]
[1724836220557,0.005,2479.6,2479.5,4.15617539]
[1724836220762,0.005,2479.6,2479.5,0.04245412]
[1724836220960,4.0379,2479.6,2479.1,4.03359]
[1724836221262,4.0379,2479.6,2479.2,0.4045]
[1724836221463,4.0379,2479.6,2478.7,4.03428]
[1724836221464,4.03351,2479.3,2478.7,4.03428]
[1724836221675,4.03351,2479.3,2478.7,4.669168]
[1724836221676,2.4664,2479.3,2478.7,4.669168]
[1724836221993,6.49988,2479.3,2478.7,8.703418]
[1724836222359,6.49988,2479.3,2478.8,4.03416]
[1724836222695,6.49988,2479.3,2478.7,4.669138]
[1724836223389,10.53341,2479.3,2478.8,4.5009938]
[1724836223620,4.03356,2479.2,2478.8,0.4669138]
[1724836223819,6.49988,2479.3,2478.8,0.54758955]
[1724836224007,6.36623,2479.6,2479.1,4.03357]
[1724836224384,0.005,2479.6,2479.2,4.11406569]
[1724836224620,0.005,2479.6,2479.3,0.81476357]
[1724836224621,4.03311,2479.5,2479.3,0.81476357]
[1724836224792,4.03311,2479.5,2478.9,4.54752518]
[1724836224793,4.03333,2479.4,2478.9,4.54752518]
[1724836224992,4.03333,2479.4,2479.0,0.08066794]
[1724836225519,2.4262,2479.3,2478.4,0.4045]
[1724836225824,4.0339,2479.0,2478.5,4.03461]
[1724836225996,4.0339,2479.0,2478.5,8.06923]
[1724836226206,4.0339,2479.0,2478.6,0.847373]
[1724836226816,4.03405,2478.9,2478.4,0.4045]
[1724836226991,4.03405,2478.9,2478.4,4.43924]
[1724836227186,8.06821,2478.9,2478.4,5.533915]
[1724836227387,8.0682,2478.9,2478.4,5.533915]
[1724836227621,4.03405,2478.9,2478.4,5.533905]
[1724836227820,8.06764,2479.1,2478.6,4.03453]
[1724836228330,4.03413,2478.9,2478.3,8.47433]
[1724836228541,8.06762,2479.1,2478.5,4.03461]
[1724836228733,4.03428,2478.8,2478.4,0.847433]
[1724836228886,4.03417,2478.9,2478.3,4.4394]
[1724836229091,4.03417,2478.9,2478.4,4.03478]
[1724836230044,8.06834,2478.9,2478.4,4.03478]
[1724836230203,4.03417,2478.9,2478.4,4.882198]
[1724836230716,8.06837,2478.9,2478.4,0.847418]
[1724836231107,31.67062835,2479.2,2478.4,0.847418]
[1724836231313,4.03442,2478.7,2478.3,0.4045]
[1724836231543,4.03442,2478.7,2478.4,0.0414245]
[1724836231814,6.45564,2479.1,2478.4,0.12211307]
[1724836232011,6.45564,2479.1,2478.4,0.52661307]
[1724836232368,6.45564,2479.1,2478.6,4.03443]
[1724836232522,6.45564,2479.1,2478.6,4.89799771]
[1724836232523,10.48944,2479.1,2478.6,4.89799771]
[1724836232858,10.48941,2479.1,2478.6,4.89799771]
[1724836233023,6.4556,2479.1,2478.7,0.0813285]
[1724836233833,4.03389,2479.0,2478.7,0.0813285]
[1724836234282,14.4634558,2478.8,2478.7,0.0813285]
[1724836234436,4.0346,2478.6,2478.2,4.03518]
[1724836234640,4.0346,2478.6,2478.2,4.84224]
[1724836234937,4.0346,2478.6,2478.3,0.07890765]
[1724836235131,4.0346,2478.6,2478.2,0.80706]
[1724836235460,4.0346,2478.6,2478.3,0.07635019]
[1724836235962,4.0346,2478.6,2478.4,0.07626489]
[1724836236261,4.0347,2478.5,2478.4,0.07626489]
[1724836236427,8.06955,2478.5,2478.0,4.03551]
[1724836236760,4.0347,2478.5,2478.1,0.07626489]
[1724836236959,4.0347,2478.5,2478.1,4.11158489]
[1724836237962,4.0347,2478.5,2478.1,0.07626489]
[1724836238166,2.3363,2478.4,2478.1,0.07626489]
[1724836238327,4.03504,2478.3,2478.1,0.07626489]
[1724836238725,4.03504,2478.3,2477.6,4.03615]
[1724836238726,2.3363,2478.2,2477.6,4.03615]
[1724836238862,8.0940858,2478.1,2477.7,0.63197432]
[1724836239068,8.0940858,2478.1,2477.6,4.03615]
[1724836239291,8.0940858,2478.1,2477.8,0.0741919]
[1724836239495,8.0944958,2477.9,2477.7,0.074365]
[1724836239702,6.37161,2478.2,2477.4,4.03648]
[1724836239703,8.0941958,2478.1,2477.5,4.03623]
[1724836240021,8.07117,2478.0,2477.4,4.0364]
[1724836240194,4.03551,2478.0,2477.6,0.07480363]
[1724836240403,5.09463,2478.4,2478.0,4.03535]
[1724836240581,2.417,2478.9,2478.4,4.03479]
[1724836240780,2.417,2478.9,2478.6,4.03453]
[1724836240983,4.03389,2479.0,2478.5,0.07480363]
[1724836241182,8.06788,2479.0,2478.7,0.0746651]
[1724836241509,4.03389,2479.0,2478.4,4.03474]
[1724836241666,4.03406,2478.9,2478.8,0.0746651]
[1724836242005,4.03462,2478.6,2478.1,4.03534]
[1724836242170,4.03462,2478.6,2478.0,6.06204025]
[1724836242584,4.03462,2478.6,2478.0,10.09740025]
[1724836242820,4.03462,2478.6,2478.1,0.6359684]
[1724836243528,4.03472,2478.5,2478.0,2.02669025]
[1724836243822,4.03472,2478.5,2478.0,1.01]
[1724836244586,4.03472,2478.5,2478.0,5.0455]
[1724836244821,8.069,2478.7,2478.1,4.03534]
[1724836245024,8.069,2478.7,2478.1,4.943424]
[1724836245025,8.06897,2478.7,2478.1,4.943424]
[1724836245325,4.03448,2478.7,2478.1,4.943424]
[1724836245481,4.03448,2478.7,2478.1,0.908084]
[1724836245821,7.83727593,2478.8,2478.1,0.908084]
[1724836246028,2.4227,2478.8,2478.5,4.03468]
[1724836246319,2.4227,2478.8,2478.3,4.03486]
[1724836246526,2.4227,2478.8,2478.2,0.08069394]
[1724836246723,2.4227,2478.8,2478.3,4.03488]
[1724836247308,2.4227,2478.8,2478.4,4.03477]
[1724836247510,6.45692,2478.8,2478.3,4.03488]
[1724836247710,4.03441,2478.7,2478.1,4.03519]
[1724836247913,4.03462,2478.6,2478.1,4.943264]
[1724836248217,4.03441,2478.7,2478.2,4.03517]
[1724836248418,4.03441,2478.7,2478.2,5.04208315]
[1724836249522,4.03441,2478.7,2478.2,1.00691315]
[1724836249726,4.03465,2478.6,2478.1,4.03519]
[1724836250240,4.03441,2478.7,2478.2,4.03505]
[1724836251030,8.06886,2478.7,2478.2,4.03505]
[1724836251194,4.03441,2478.7,2478.2,4.03505]
[1724836251394,8.06889,2478.7,2478.2,4.943074]
[1724836251818,4.03441,2478.7,2478.2,4.943074]
[1724836251995,8.06887,2478.7,2478.2,4.943074]
[1724836252190,4.03462,2478.6,2478.2,0.908024]
[1724836252390,4.03462,2478.6,2478.1,4.03519]
[1724836252623,4.03462,2478.6,2478.1,8.07045]
[1724836252823,4.03462,2478.6,2478.1,4.03519]
[1724836253087,2.4227,2478.8,2478.3,4.03492]
[1724836253291,6.45693,2478.8,2478.3,8.06984]
[1724836253530,4.03439,2478.7,2478.4,0.07418038]
[1724836254333,4.03439,2478.7,2478.3,4.03492]
[1724836254528,8.06885,2478.7,2478.4,0.07418038]
[1724836254828,8.06885,2478.7,2478.2,4.03517]
[1724836254829,4.03439,2478.7,2478.2,4.03517]
[1724836255027,4.03439,2478.7,2478.5,0.07418038]
[1724836255228,11.5772,2479.1,2478.6,4.03446]
[1724836255391,11.57718,2479.1,2478.6,0.07418038]
[1724836255594,11.57718,2479.1,2478.4,8.06953]
[1724836255595,4.03412,2478.9,2478.4,8.06953]
[1724836255835,4.03412,2478.9,2478.7,0.07418038]
[1724836256033,4.03428,2478.8,2478.3,4.03501]
[1724836256543,4.03437,2478.7,2478.2,4.943207]
[1724836256693,4.03437,2478.7,2478.2,4.03516]
[1724836256889,4.03414,2478.9,2478.4,4.03485]
[1724836257233,13.6013111,2479.1,2478.6,4.03438]
[1724836257234,11.57715,2479.1,2478.6,4.03438]
[1724836257441,15.61101,2479.1,2478.6,4.03438]
[1724836257854,10.51638,2479.1,2478.6,4.03438]
[1724836258017,4.03388,2479.0,2478.5,4.03465]
[1724836258534,4.03414,2478.9,2478.4,4.03484]
[1724836258945,6.48252,2479.1,2478.8,4.0342]
[1724836258946,2.4487,2479.1,2478.8,4.0342]
[1724836259845,9.12811,2479.3,2478.8,4.0342]
[1724836259846,2.3494,2479.7,2479.2,4.03345]
[1724836260010,2.3494,2479.8,2479.3,4.03336]
[1724836260603,4.03274,2479.7,2479.1,8.06727]
[1724836260820,4.03274,2479.7,2479.2,4.03351]
[1724836261217,4.03333,2479.4,2478.9,4.03395]
[1724836261754,4.03347,2479.3,2478.7,4.03423]
[1724836262043,4.03348,2479.3,2478.8,0.6316854]
[1724836262203,4.03348,2479.3,2478.7,4.03423]
[1724836262752,4.03348,2479.3,2478.8,4.0342]
[1724836263048,7.22332899,2479.5,2478.9,4.03401]
[1724836263347,0.005,2479.6,2479.4,4.0332]
[1724836263567,0.005,2479.6,2479.4,4.43652]
[1724836263701,0.005,2479.6,2479.2,4.03346]
[1724836264250,4.06225646,2479.6,2478.9,4.03399]
[1724836264408,4.03354,2479.3,2478.8,4.03411]
[1724836264852,8.09058646,2479.4,2478.8,8.06823]
[1724836265035,4.03333,2479.4,2478.8,4.03411]
[1724836265607,4.03332,2479.4,2478.8,4.03411]
[1724836265856,4.03357,2479.2,2478.7,1.01]
[1724836266006,4.03357,2479.2,2478.7,5.04434]
[1724836266207,9.57952867,2479.4,2478.8,4.0342]
[1724836266552,4.03332,2479.4,2478.8,4.0342]
[1724836266751,4.03354,2479.3,2478.8,4.0342]
[1724836267241,4.03332,2479.4,2478.8,4.0342]
[1724836267242,4.03357,2479.2,2478.8,4.0342]
[1724836268213,8.0667,2479.4,2478.8,4.0342]
[1724836268628,4.03344,2479.3,2478.8,4.0342]
[1724836269153,4.03344,2479.3,2479.0,1.01]
[1724836269510,4.03344,2479.3,2479.1,0.07259988]
[1724836269745,4.03355,2479.2,2479.1,0.07259988]
[1724836270121,14.51185646,2479.2,2479.1,0.07259988]
[1724836270326,15.06185646,2479.2,2479.1,0.07259988]
[1724836270663,4.03372,2479.1,2479.0,1.01]
[1724836270829,5.6481995,2479.1,2479.0,1.01]
[1724836271031,9.6819195,2479.1,2479.0,1.01]
[1724836271560,2.3875,2479.2,2479.0,1.01]
[1724836271780,2.3875,2479.2,2479.1,0.07259988]
[1724836272360,2.3875,2479.2,2479.0,1.01]
[1724836272562,4.03324,2479.4,2479.1,0.07259988]
[1724836272727,4.03347,2479.3,2479.1,0.07259988]
[1724836272937,5.58672921,2479.4,2479.1,0.07259988]
[1724836272938,4.03355,2479.2,2479.1,0.07259988]
[1724836273147,4.03355,2479.2,2479.0,1.01]
[1724836273351,4.03355,2479.2,2479.1,0.07259988]
[1724836273563,4.0334,2479.3,2479.0,1.01]
[1724836273719,1.55348921,2479.4,2479.1,0.07259988]
[1724836274045,5.58672921,2479.4,2479.1,0.07259988]
[1724836274559,5.4524,2479.5,2479.1,0.07259988]
[1724836274734,4.03333,2479.4,2479.0,1.01]
[1724836275056,5.4524,2479.5,2479.1,0.07276135]
[1724836275234,4.03331,2479.4,2479.1,0.07276135]
[1724836275632,19.78,2479.3,2479.1,0.07276135]
[1724836275848,4.03355,2479.2,2479.1,0.07276135]
[1724836276049,4.03355,2479.2,2479.0,1.01]
[1724836276446,4.03355,2479.2,2479.1,0.07276135]
[1724836276976,4.03372,2479.1,2479.0,1.01]
[1724836277267,7.18531128,2479.2,2479.0,1.01]
[1724836277426,4.03358,2479.2,2479.0,1.01]
[1724836277627,23.8134,2479.3,2479.1,0.07276135]
[1724836277829,27.15593794,2479.3,2479.1,0.07276135]
[1724836278048,27.15593794,2479.3,2479.0,1.01]
[1724836278571,27.15593794,2479.3,2479.1,0.07276135]
[1724836278726,19.78,2479.3,2479.1,0.07276135]
[1724836279071,19.78,2479.3,2479.0,1.01]
[1724836279373,19.78,2479.3,2479.1,0.07276135]
[1724836280448,23.81349,2479.3,2479.1,1.08276135]
[1724836280656,27.143386,2479.3,2479.1,1.08276135]
[1724836280855,27.143386,2479.3,2479.1,1.01]
[1724836281160,4.03355,2479.2,2479.1,1.01]
[1724836281471,19.78,2479.3,2479.2,4.03355]
[1724836281676,4.06225646,2479.6,2479.2,4.941153]
[1724836281677,19.785,2479.6,2479.2,4.941153]
[1724836281959,19.785,2479.6,2479.4,4.03316]
[1724836281960,0.005,2479.6,2479.4,4.03316]
[1724836282278,0.005,2479.6,2479.5,0.07294588]
[1724836282837,4.03793,2479.6,2479.1,5.0437]
[1724836283035,4.03793,2479.6,2479.5,0.07294588]
[1724836283274,0.005,2479.6,2479.2,4.03353]
[1724836283574,0.005,2479.6,2479.3,4.03331]
[1724836283875,0.005,2479.6,2479.4,0.07231165]
[1724836285035,0.005,2479.6,2479.2,4.03353]
[1724836285273,0.005,2479.6,2479.5,0.07231165]
[1724836285484,0.005,2479.6,2479.4,4.03323]
[1724836285637,0.005,2479.6,2479.5,0.07156205]
[1724836287555,0.005,2479.6,2479.5,4.10463205]
[1724836288276,0.005,2479.6,2479.5,8.13770205]
[1724836290095,0.005,2479.6,2479.5,12.17077205]
[1724836290379,0.005,2479.6,2479.5,9.45577926]
[1724836293270,0.005,2479.6,2479.5,10.46577926]
[1724836294878,0.005,2479.6,2479.5,5.11463205]
[1724836295093,0.005,2479.6,2479.5,1.08156205]
[1724836295857,4.0379,2479.6,2479.5,1.08156205]
[1724836296090,0.005,2479.6,2479.5,1.08156205]
[1724836300269,0.005,2479.6,2479.5,5.11463205]
[1724836300594,0.005,2479.6,2479.5,5.63416174]
[1724836300804,0.005,2479.6,2479.5,5.11463205]
[1724836301996,0.005,2479.6,2479.5,9.14770205]
[1724836303514,0.005,2479.6,2479.5,19.56252851]
[1724836303794,0.005,2479.6,2479.5,15.50527205]
[1724836304857,0.005,2479.6,2479.5,11.47220205]
[1724836305302,0.005,2479.6,2479.5,6.26185226]
[1724836305606,0.005,2479.6,2479.5,5.11463205]
[1724836306012,0.005,2479.6,2479.5,9.2283475]
[1724836308172,0.005,2479.6,2479.5,15.7603175]
[1724836308378,0.00032456,2479.6,2479.5,30.35893871]
[1724836308560,2.3797,2480.8,2480.5,4.03137]
[1724836308763,2.3797,2480.8,2480.6,0.06793268]
[1724836308964,2.3797,2480.8,2480.3,8.0633]
[1724836309259,2.3797,2480.8,2480.4,0.06793268]
[1724836309488,2.3797,2480.8,2480.5,4.03144]
[1724836309703,2.3797,2480.8,2480.5,4.03135]
[1724836309901,2.3797,2480.8,2480.3,4.03162]
[1724836310133,2.3797,2480.8,2480.6,0.06793268]
[1724836310423,2.3797,2480.8,2480.7,0.06793268]
[1724836310776,2.3797,2480.8,2480.5,4.03144]
[1724836311013,2.3797,2480.8,2480.6,0.06793268]
[1724836311721,10.49874,2480.7,2480.6,0.06793268]
[1724836312084,10.49874,2480.7,2479.9,4.03233]
[1724836312085,2.4365,2480.3,2479.9,4.03233]
[1724836312478,2.4365,2480.3,2480.0,0.06662034]
[1724836313176,2.4365,2480.3,2480.0,4.09887034]
[1724836313477,2.4365,2480.3,2480.0,0.06662034]
[1724836313826,6.46839,2480.3,2479.8,4.03256]
[1724836314031,6.46839,2480.3,2480.1,0.06662034]
[1724836314192,6.46839,2480.3,2479.8,4.839094]
[1724836314393,6.46839,2480.3,2479.9,0.06662034]
[1724836314942,6.46839,2480.3,2479.9,4.09901034]
[1724836315441,6.46839,2480.3,2479.9,0.06662034]
[1724836315634,6.46836,2480.3,2479.9,0.06662034]
[1724836316590,10.50025,2480.3,2479.9,0.06662034]
[1724836316886,19.78,2480.2,2479.9,0.06662034]
[1724836317089,14.42705646,2480.0,2479.9,0.06662034]
[1724836317291,6.3382,2479.6,2479.5,1.01]
[1724836317753,6.3382,2479.6,2479.5,1.07395061]
[1724836318108,10.3711,2479.6,2479.5,1.07395061]
[1724836318442,11.81393565,2479.6,2479.5,1.01]
[1724836319350,7.78103565,2479.6,2479.5,1.01]
[1724836319502,6.3382,2479.6,2479.5,1.07457249]
[1724836320418,2.3053,2479.6,2479.5,1.07457249]
[1724836321956,6.3382,2479.6,2479.5,1.07457249]
[1724836322230,10.3711,2479.6,2479.5,1.07457249]
[1724836322447,7.78103565,2479.6,2479.5,1.07457249]
[1724836323461,27.56103565,2479.6,2479.5,1.07457249]
[1724836323820,27.56103565,2479.6,2479.5,1.01]
[1724836324961,31.59393565,2479.6,2479.5,1.01]
[1724836325183,38.62683565,2479.6,2479.5,1.01]
[1724836325332,39.17683565,2479.6,2479.5,1.01]
[1724836326130,43.20973565,2479.6,2479.5,1.01]
[1724836326628,2.4779,2478.5,2478.1,6.14163789]
[1724836326824,2.4779,2478.5,2478.1,4.03524]
[1724836327027,2.4779,2478.5,2478.2,0.06139436]
[1724836327472,2.4779,2478.5,2478.2,4.09656436]
[1724836327629,2.4779,2478.5,2478.2,0.06139436]
[1724836328035,2.4779,2478.5,2478.1,4.03531]
[1724836328385,4.05725646,2478.2,2477.8,0.63187901]
[1724836328533,4.03559,2478.0,2477.9,0.0610053]
[1724836329072,4.03559,2478.0,2477.4,4.03633]
[1724836329073,8.09284646,2478.0,2477.4,4.03633]
[1724836329287,6.51325,2478.1,2477.5,0.807294]
[1724836329440,2.4215,2478.4,2477.7,4.03594]
[1724836329643,2.4215,2478.4,2478.0,4.03542]
[1724836330131,2.4215,2478.4,2478.1,0.0610053]
[1724836330454,4.03518,2478.2,2477.7,4.03588]
[1724836331332,8.07046,2478.2,2477.7,4.03588]
[1724836331677,8.07048,2478.2,2477.7,4.03588]
[1724836331842,4.05725646,2478.2,2477.3,10.45038]
[1724836332184,8.07152,2477.9,2477.3,8.07308]
[1724836332332,4.03576,2477.9,2477.3,4.03653]
[1724836332775,4.03602,2477.7,2477.1,4.03688]
[1724836332983,4.03602,2477.7,2477.2,4.11744607]
[1724836333213,4.03602,2477.7,2477.2,4.0368]
[1724836333374,8.07214,2477.7,2477.1,4.03688]
[1724836333571,8.07212,2477.7,2477.1,8.07376]
[1724836333779,4.03602,2477.7,2477.1,8.07376]
[1724836334121,23.81602,2477.7,2477.2,4.11749618]
[1724836334267,4.03616,2477.6,2477.2,4.03681]
[1724836334472,4.036,2477.7,2477.2,4.03681]
[1724836334673,5.1126466,2477.7,2477.2,4.03681]
[1724836335204,4.036,2477.7,2477.2,4.03681]
[1724836335714,4.439416,2477.8,2477.3,4.03662]
[1724836335884,4.439416,2477.8,2477.3,8.07319]
[1724836336220,4.439416,2477.8,2477.3,4.03657]
[1724836336909,4.036,2477.7,2477.3,4.03657]
[1724836337072,4.036,2477.7,2477.1,8.15441038]
[1724836337472,4.036,2477.7,2477.1,4.11755038]
[1724836337720,4.03621,2477.6,2477.1,4.03682]
[1724836338302,8.7451576,2477.7,2477.1,4.03682]
[1724836338840,4.7090676,2477.7,2477.2,4.03677]
[1724836339451,8.7452176,2477.7,2477.2,4.03677]
[1724836339603,0.91699001,2477.6,2477.1,4.03693]
[1724836339803,4.95320001,2477.6,2477.1,4.03693]
[1724836340407,4.95320001,2477.6,2477.2,4.03679]
[1724836341408,0.91699001,2477.6,2477.2,4.03679]
[1724836341744,4.7090776,2477.7,2477.2,4.03679]
[1724836341948,4.03617,2477.6,2477.2,4.03679]
[1724836343240,0.6730676,2477.7,2477.2,4.03671]
[1724836343445,4.7091576,2477.7,2477.2,4.03671]
[1724836343644,2.3567,2477.3,2476.4,6.534]
[1724836343894,4.05725646,2477.1,2476.4,6.534]
[1724836344102,8.09434646,2477.1,2476.5,0.06216753]
[1724836344250,10.45133646,2476.9,2476.5,0.06216753]
[1724836344447,2.3567,2476.9,2476.4,4.03798]
[1724836344654,5.09463,2477.3,2477.0,4.03705]
[1724836344959,19.78,2477.4,2477.0,4.03705]
[1724836345172,24.87463,2477.6,2477.2,4.03672]
[1724836345505,24.87463,2477.6,2477.3,4.03656]
[1724836345805,24.87463,2477.6,2477.3,4.09870753]
[1724836346113,24.87463,2477.6,2477.3,0.06216753]
[1724836346265,24.87463,2477.6,2477.3,4.03657]
[1724836346468,24.87463,2477.6,2477.4,0.06368668]
[1724836346867,4.03642,2477.5,2477.0,4.03705]
[1724836347288,32.447971,2477.6,2477.0,8.07406]
[1724836347523,32.447971,2477.6,2477.0,8.07405]
[1724836347676,32.447971,2477.6,2477.0,4.03701]
[1724836348005,32.447971,2477.6,2477.1,4.03697]
[1724836348814,36.484221,2477.6,2477.0,4.03701]
[1724836349310,2.3661,2477.2,2476.8,4.03735]
[1724836349466,2.3661,2477.2,2476.8,8.07473]
[1724836349673,4.03658,2477.4,2476.9,4.03729]
[1724836349874,6.53298,2477.4,2476.9,4.03729]
[1724836350083,19.78,2477.3,2476.9,4.03729]
[1724836350367,19.78,2477.3,2476.9,0.88820824]
[1724836350572,18.93701607,2477.3,2477.2,8.07362]
[1724836352070,17.43846443,2477.3,2477.2,8.07362]
[1724836352374,17.43846443,2477.3,2477.2,8.13712246]
[1724836352574,17.43846443,2477.3,2477.2,9.17716471]
[1724836353795,7.37593,2478.2,2478.0,4.03544]
[1724836353964,2.2813,2478.2,2478.1,0.403544]
[1724836354163,2.2813,2478.2,2478.1,0.0632607]
[1724836355146,14.40891646,2478.2,2478.1,0.0632607]
[1724836355418,4.03545,2478.1,2477.6,4.03615]
[1724836355620,4.03545,2478.1,2477.6,8.0723]
[1724836355824,4.03545,2478.1,2477.7,0.06282332]
[1724836356782,4.03552,2478.0,2477.7,0.06282332]
[1724836356986,8.09308646,2477.8,2477.7,0.06282332]
[1724836357292,4.03617,2477.6,2477.1,4.03696]
[1724836357626,2.2813,2477.5,2477.1,4.03696]
[1724836357995,2.2813,2477.5,2477.0,4.03704]
[1724836357996,2.2813,2477.5,2477.2,4.03667]
[1724836358189,2.2813,2477.5,2477.2,8.0734]
[1724836358385,2.2813,2477.5,2477.1,4.03696]
[1724836358610,6.31771,2477.5,2477.0,4.03704]
[1724836358926,4.03649,2477.4,2476.8,4.03731]
[1724836359125,6.39231,2477.2,2477.1,0.06337582]
[1724836359311,2.3555,2477.2,2477.1,0.06337582]
[1724836359513,2.3555,2477.2,2476.8,8.07468]
[1724836359712,2.3555,2477.2,2477.1,0.06337582]
[1724836360067,2.3555,2477.2,2476.8,4.03731]
[1724836360068,2.3555,2477.2,2476.8,8.07468]
[1724836360186,2.3555,2477.2,2477.1,0.06337582]
[1724836360716,2.3555,2477.2,2476.8,8.07469]
[1724836360921,6.39234,2477.2,2477.1,0.06337582]
[1724836361101,6.39243,2477.2,2476.7,1.0115577]
[1724836361296,6.39243,2477.2,2477.1,0.06337582]
[1724836361500,6.39243,2477.2,2476.7,5.04907873]
[1724836361726,6.39243,2477.2,2477.1,0.06337582]
[1724836361910,6.39243,2477.2,2476.7,4.03752]
[1724836361911,7.435334,2477.2,2476.7,4.03752]
[1724836362425,7.435334,2477.2,2476.8,0.06337582]
[1724836362426,7.435314,2477.2,2476.8,0.06337582]
[1724836363337,4.03699,2477.1,2476.9,0.06337582]
[1724836363539,4.7805214,2477.1,2476.6,4.03769]
[1724836363741,4.7805214,2477.1,2477.0,0.06337582]
[1724836363907,4.0372,2477.0,2476.5,4.03794]
[1724836364524,4.7805214,2477.1,2476.6,4.03776]
[1724836364726,4.03714,2477.0,2476.5,4.03786]
[1724836364929,6.36691,2476.9,2476.5,4.03786]
[1724836365945,2.3296,2476.9,2476.5,4.03786]
[1724836366803,6.36695,2476.9,2476.3,8.07634]
[1724836367134,6.36695,2476.9,2476.2,4.03835]
[1724836367135,4.03771,2476.7,2476.2,4.03835]
[1724836367313,4.03771,2476.7,2476.1,4.03845]
[1724836367642,2.4715,2476.5,2476.1,4.03845]
[1724836368311,2.4715,2476.5,2476.1,8.07697]
[1724836368517,6.50952,2476.5,2476.0,4.03876]
[1724836370235,4.03818,2476.4,2475.9,4.03893]
[1724836370557,7.564266,2476.5,2476.0,4.03875]
[1724836370707,6.50952,2476.5,2476.0,4.03875]
[1724836371335,4.03813,2476.4,2475.9,4.03892]
[1724836372052,6.50952,2476.5,2476.0,4.03876]
[1724836372355,2.3754,2476.8,2476.3,4.03816]
[1724836372510,2.3754,2476.8,2476.3,4.03819]
[1724836372511,6.41295,2476.8,2476.3,4.03819]
[1724836372705,2.3754,2477.2,2476.8,4.0374]
[1724836373139,6.41222,2477.2,2476.7,4.0375]
[1724836373307,4.03701,2477.1,2476.6,4.03778]
[1724836373505,4.03755,2476.8,2476.1,0.83430202]
[1724836373724,4.03755,2476.8,2476.2,4.03834]
[1724836373949,4.03763,2476.7,2476.2,4.03834]
[1724836374150,4.03763,2476.7,2476.3,0.06512627]
[1724836375138,4.03779,2476.6,2476.3,0.06512627]
[1724836375349,0.641295,2476.7,2476.3,0.06512627]
[1724836375551,4.679015,2476.7,2476.3,0.06512627]
[1724836375909,0.641295,2476.7,2476.3,0.06512627]
[1724836376118,0.641295,2476.7,2476.3,4.10338627]
[1724836376464,4.03755,2476.8,2476.3,0.06512627]
[1724836376751,4.03764,2476.7,2476.3,0.06512627]
[1724836377047,21.47610443,2476.7,2476.3,0.06512627]
[1724836377249,4.03782,2476.6,2476.3,0.06512627]
[1724836377415,2.2742,2476.5,2476.3,0.06512627]
[1724836377843,2.2742,2476.5,2476.2,4.03834]
[1724836378155,2.2742,2476.5,2476.3,0.06549274]
[1724836380348,2.2742,2476.5,2476.1,4.03856]
[1724836380515,2.2742,2476.5,2476.4,0.06549274]
[1724836380717,2.2742,2476.5,2476.2,4.03844]
[1724836380954,2.2742,2476.5,2476.4,0.06549274]
[1724836381116,2.2742,2476.5,2476.2,4.03844]
[1724836381316,2.2742,2476.5,2476.4,0.06549274]
[1724836381513,2.2742,2476.5,2476.2,4.03844]
[1724836381774,17.43846443,2476.7,2476.2,4.03844]
[1724836381775,19.79206443,2476.7,2476.4,0.06549274]
[1724836382056,19.79206443,2476.7,2476.3,4.03813]
[1724836382257,19.79206443,2476.7,2476.5,0.06549274]
[1724836382455,19.79206443,2476.7,2476.3,4.03813]
[1724836382656,19.79206443,2476.7,2476.6,0.06549274]
[1724836382854,19.79206443,2476.7,2476.3,4.03813]
[1724836383230,25.32043485,2476.7,2476.2,8.07681]
[1724836383436,25.32043485,2476.7,2476.4,0.06549274]
[1724836383620,25.32043485,2476.7,2476.3,4.03825]
[1724836383822,23.82970443,2476.7,2476.5,0.06549274]
[1724836384144,23.82970443,2476.7,2476.6,0.06549274]
[1724836384315,19.79206443,2476.7,2476.3,4.03825]
[1724836384516,19.79206443,2476.7,2476.6,0.06549274]
[1724836384766,19.79206443,2476.7,2476.4,4.03808]
[1724836384921,19.79206443,2476.7,2476.6,0.06549274]
[1724836385123,19.79206443,2476.7,2476.4,4.03808]
[1724836385325,19.79206443,2476.7,2476.6,0.06549274]
[1724836385548,19.79206443,2476.7,2476.4,4.03808]
[1724836386168,19.79206443,2476.7,2476.5,0.06549274]
[1724836388272,2.3536,2476.7,2476.5,4.10336274]
[1724836389173,2.3536,2476.7,2476.5,0.06549274]
[1724836389465,2.3536,2476.7,2476.3,4.03815]
[1724836389466,2.58896,2476.7,2476.3,4.03815]
[1724836389672,2.58896,2476.7,2476.6,0.06537752]
[1724836389831,2.58896,2476.7,2476.3,8.07635]
[1724836390029,2.58896,2476.7,2476.3,4.03815]
[1724836390438,2.58896,2476.7,2476.5,4.03792]
[1724836390439,2.3536,2476.7,2476.5,4.03792]
[1724836390957,2.3536,2476.7,2476.6,0.06537752]
[1724836391356,2.3536,2476.7,2476.4,4.03809]
[1724836391570,2.3536,2476.7,2476.6,0.06537752]
[1724836391776,2.3536,2476.7,2476.5,4.03794]
[1724836391973,2.3536,2476.7,2476.6,0.06537752]
[1724836392700,2.3536,2476.7,2476.4,4.0381]
[1724836392843,2.3536,2476.7,2476.6,0.06537752]
[1724836393680,2.3536,2476.7,2476.4,4.0381]
[1724836393897,2.3536,2476.7,2476.6,0.06537752]
[1724836394184,2.3536,2476.7,2476.5,4.10332752]